[Event "MPL-4 Indian Chess Tour 2022"]
[Site "Chess24"]
[Date "2022.09.27"]
[Round "9.2"]
[White "Mitrabha, Guha"]
[Black "Aditya Mittal"]
[Result "1-0"]
[ECO "A13"]
[WhiteElo "2471"]
[BlackElo "2485"]
[Annotator "TA"]
[PlyCount "151"]
[EventDate "2022.09.29"]
[EventType "tourn (rapid)"]
[EventCountry "NET"]
[SourceTitle "playchess.com"]
[Source "ChessBase"]
[SourceQuality "1"]
[WhiteTeam "India"]
[BlackTeam "India"]
[WhiteTeamCountry "IND"]
[BlackTeamCountry "IND"]
[TimeControl "900+10"]

{[%evp 14,151,18,7,8,0,8,-29,-39,-37,-31,-49,-35,-43,9,-31,-11,-5,44,28,40,41,45,52,46,47,47,22,16,0,91,87,81,3,3,0,0,0,7,0,33,29,33,23,31,34,139,150,146,149,154,150,129,0,33,21,19,19,71,31,31,34,51,52,50,50,50,49,52,33,52,0,8,8,81,79,237,227,370,50,424,409,387,387,380,372,29960,29962,29976,29979,29979,29980,29980,29981,29981,29982,29982,29965,29982,29983,29982,29969,29968,29949,29962,29966,29962,3501,29964,29967,29968,29969,29969,29970,29970,29971,29971,29972,29972,29973,29973,29974,29983,29984,29985,29984,29984,29981,29984,29985,29985,29982,29985,29986,29986,29985,29985,29986,29987,29988]} 1. Nf3 {[%emt 0:00:00]} Nf6 {[%emt 0:00:00]} 2. c4 {[%emt 0:00:06]} e6 {[%emt 0:00:02]} 3. e3 {[%emt 0:00:05]} d5 {[%emt 0:00:01]} 4. b3 {[%emt 0:00:02]} c5 {[%emt 0:00:03]} 5. Bb2 {[%emt 0:00:24]} Nc6 {[%emt 0:00:03]} 6. cxd5 {[%emt 0:00:32]} exd5 {[%emt 0:00:00]} 7. Bb5 {[%emt 0:00:01]} Bd6 {[%emt 0:00:05]} 8. O-O {[%emt 0:00:05]} O-O {[%emt 0:00:04] A13: English Opening: 1...e6.} 9. d4 {[%emt 0:00:15]} cxd4 {[%emt 0:00:04]} 10. Bxc6 {[%emt 0:00:35]} bxc6 {[%emt 0:00:04] Black has an edge.} 11. Qxd4 {[%emt 0:00:00]} Re8 {[%emt 0:00:42]} 12. Nbd2 {[%emt 0:00:32] [#]} Bb7 $146 {[%emt 0:01:11]} ({Predecessor:} 12... Qe7 13. Rac1 Bd7 14. Qh4 Ne4 15. Qxe7 Rxe7 16. Nxe4 Rxe4 17. Bd4 a5 18. Bc5 Bc7 {1-0 (46) Puranik,A (2604)-Fridman,D (2626) Warsaw 2021}) 13. Rfd1 {[%emt 0:01:26][%cal Bf1d1,Bd1d2,Bd2c2][%mdl 32]} Qe7 {[%emt 0:00:30]} ({Black should play} 13... c5 $15 14. Qh4 Nd7) 14. Rac1 {[%emt 0:00:42]} a5 {[%emt 0:00:43][%cal Oa5a4]} 15. Qh4 {[%emt 0:01:26]} Ne4 {[%emt 0:02:17]} (15... Nd7 $11) 16. Qxe7 $14 {[%emt 0:00:42]} Rxe7 {[%emt 0:00:00]} 17. Nd4 {[%emt 0:00:05]} Nxd2 {[%emt 0:04:45]} 18. Rxd2 {[%emt 0:00:09]} Rc7 {[%emt 0:00:39]} 19. Rdc2 {[%emt 0:00:14][%cal Rd4c6]} Rac8 {[%emt 0:00:47]} 20. Bc3 {[%emt 0:00:46]} Ra8 {[%emt 0:00:15][%cal Bc8a8,Ba8a6,Ba6b6,Bb6b3][%mdl 32]} 21. a4 {[%emt 0:02:48]} Ba3 {[%emt 0:00:27]} (21... Bf8 $11) 22. Bb2 $16 {[%emt 0:00:09]} Bf8 {[%emt 0:01:24]} 23. h3 {[%emt 0:02:40] White is more active.} (23. Nxc6 $16 {Strongly threatening h3.} Bxc6 24. Rxc6) 23... Ra6 $1 $11 {[%emt 0:00:07]} 24. Nb5 {[%emt 0:02:02]} Rd7 {[%emt 0:00:17]} 25. Nd4 $36 {[%emt 0:00:01][%cal Rd4c6,Bb5d4,Bd4f3,Bf3e5][%mdl 2080] White is pushing.} Rc7 {[%emt 0:00:48]} 26. Nf3 {[%emt 0:01:05]} Rc8 {[%emt 0:00:24]} 27. Ne5 {[%emt 0:00:49]} Rb6 {[%emt 0:00:32]} 28. Bd4 {[%emt 0:00:02]} Rxb3 {[%emt 0:00:37]} 29. Nxc6 {[%emt 0:00:02][%cal Oc6e7] Black must now prevent Ne7+!} Rxc6 {[%emt 0:00:42]} (29... Ra8 $1 $14) 30. Rxc6 $16 {[%emt 0:00:00]} Bxc6 {[%emt 0:00:00]} 31. Rxc6 $11 {[%emt 0:00:02][%mdl 4096] Endgame aiming for Rc8. KRB-KRB} f6 {[%emt 0:00:04]} 32. Rc8 {[%emt 0:00:58]} Kf7 {[%emt 0:00:05] [#]} 33. Rd8 {[%emt 0:00:05]} (33. Bc5 $1 $16 Bxc5 34. Rxc5) 33... Bb4 {[%emt 0:00:12]} 34. Rxd5 {[%emt 0:00:04]} Ra3 {[%emt 0:00:03]} 35. Rd7+ {[%emt 0:00:01]} Kg6 {[%emt 0:00:03]} (35... Kf8 $11) 36. g4 {[%emt 0:00:03]} Rxa4 {[%emt 0:01:14]} 37. Kg2 {[%emt 0:00:13]} Ra2 {[%emt 0:00:20]} 38. h4 {[%emt 0:00:11]} h5 $1 {[%emt 0:01:00]} 39. gxh5+ {[%emt 0:00:04]} Kh6 {[%emt 0:00:05]} 40. e4 {[%emt 0:00:19]} Bd2 {[%emt 0:00:41] Inhibits Be3+.} 41. Kf3 {[%emt 0:00:13]} a4 {[%emt 0:00:23]} 42. Bc5 {[%emt 0:00:02]} ({Better is} 42. Ra7 $14) 42... Kxh5 {[%emt 0:00:07]} 43. Rxg7 {[%emt 0:00:08]} Rc2 {[%emt 0:00:15] [#]} (43... Kxh4 $11 {remains equal.} 44. Rf7 Kg5) 44. Bd4 $1 $16 {[%emt 0:00:28] And now Rh7+ would win. White stays focused until the end.} Be1 $2 {[%emt 0:00:07]} (44... Rc6 $16) 45. Ra7 $18 {[%emt 0:00:26]} Ra2 {[%emt 0:00:12]} (45... Kxh4 $142 46. Bxf6+ Kh5) 46. Rb7 $2 {[%emt 0:00:16]} (46. Rh7+ $18 Kg6 47. Rb7) 46... Rd2 $2 {[%emt 0:00:10][%mdl 8192]} (46... Ra3+ $1 $14 47. Kf4 Bd2+ 48. Kf5 Rf3+ 49. Ke6 a3) 47. Rb5+ {[%emt 0:00:03]} Kg6 {[%emt 0:00:04]} 48. h5+ {[%emt 0:00:01]} Kf7 {[%emt 0:00:04]} 49. Rb7+ {[%emt 0:00:02]} Ke6 $2 {[%emt 0:00:14]} (49... Kg8 $18) 50. Bc5 {[%emt 0:00:26][%csl Gc5][%cal Rb7e7]} f5 {[%emt 0:00:17]} 51. Re7+ {[%emt 0:00:08]} Kf6 {[%emt 0:00:01]} 52. e5+ {[%emt 0:00:00]} Kg5 {[%emt 0:00:01]} 53. Be3+ {[%emt 0:00:01]} Kxh5 {[%emt 0:00:08]} 54. Bxd2 {[%emt 0:00:06]} Bxd2 {[%emt 0:00:00] KR-KB} 55. Ra7 {[%emt 0:00:02]} Bc3 {[%emt 0:00:06]} 56. e6 {[%emt 0:00:04]} Kg6 {[%emt 0:00:04]} 57. Rxa4 {[%emt 0:00:02]} Kf6 {[%emt 0:00:01]} 58. Ra6 {[%emt 0:00:03]} Bd4 {[%emt 0:00:05]} 59. Ke2 {[%emt 0:00:02]} Bc5 {[%emt 0:00:08]} 60. Rc6 {[%emt 0:00:07]} (60. Kd3 $142 Bxf2 61. Kc4 Bg3 62. Kd5 Ke7 63. Ra7+ Ke8 64. Rg7 Bf4 65. Rf7) 60... Be7 {[%emt 0:00:07]} 61. f4 {[%emt 0:00:13] White mates.} Ba3 {[%emt 0:00:15]} 62. Kd3 {[%emt 0:00:03]} Bb4 {[%emt 0:00:07]} 63. Kc4 {[%emt 0:00:15]} Bd2 {[%emt 0:00:05]} 64. Kd5 {[%emt 0:00:07]} Bxf4 {[%emt 0:00:03]} 65. Rc4 {[%emt 0:00:03]} Bg3 {[%emt 0:00:47]} 66. Rc3 {[%emt 0:00:02]} Bf4 {[%emt 0:00:22]} 67. Rf3 {[%emt 0:00:04]} Bg5 {[%emt 0:00:14]} 68. Kd6 {[%emt 0:00:13]} f4 {[%emt 0:00:09]} 69. Rb3 {[%emt 0:00:19]} Kg6 {[%emt 0:00:19]} 70. Ke5 {[%emt 0:00:35]} Kg7 {[%emt 0:00:22]} 71. Rb7+ {[%emt 0:00:34]} Kg6 {[%emt 0:00:06]} 72. Rb8 {[%emt 0:00:21]} Kg7 {[%emt 0:00:14]} 73. Kd6 {[%emt 0:01:00]} f3 {[%emt 0:00:12]} 74. Rb3 {[%emt 0:00:40]} f2 {[%emt 0:00:05]} 75. Rf3 {[%emt 0:00:02]} Bh4 {[%emt 0:00:06]} 76. e7 {[%emt 0:00:08] Weighted Error Value: White=0.18 (very precise) /Black=0.52} 1-0

[Event "MPL-4 Indian Chess Tour 2022"]
[Site "Chess24"]
[Date "2022.09.27"]
[Round "9.3"]
[White "Vaibhav, Suri"]
[Black "Puranik, Abhimanyu"]
[Result "0-1"]
[ECO "E60"]
[WhiteElo "2600"]
[BlackElo "2603"]
[Annotator "TA"]
[PlyCount "53"]
[EventDate "2022.09.29"]
[EventType "tourn (rapid)"]
[EventCountry "NET"]
[SourceTitle "playchess.com"]
[Source "ChessBase"]
[SourceQuality "1"]
[WhiteTeam "India"]
[BlackTeam "India"]
[WhiteTeamCountry "IND"]
[BlackTeamCountry "IND"]
[TimeControl "900+10"]

{[%evp 9,53,39,44,0,2,6,15,0,0,0,38,31,33,33,46,21,54,45,37,57,60,61,72,67,64,59,66,60,77,52,102,112,89,33,38,38,34,-85,-56,-343,-360,-352,-324,-5457,-5410,-1638]} 1. d4 {[%emt 0:00:00][%cal Bd2d4,Bd4d5][%mdl 32]} Nf6 {[%emt 0:00:00]} 2. c4 {[%emt 0:00:01]} g6 {[%emt 0:00:02]} 3. f3 {[%emt 0:00:01]} c5 {[%emt 0:00:02]} 4. d5 {[%emt 0:00:01]} Bg7 {[%emt 0:00:02]} 5. e4 {[%emt 0:00:01]} d6 {[%emt 0:00:01]} 6. Bd3 {[%emt 0:00:01] E60: King's Indian: Unusual lines and Fianchetto Variation without Nc3.} e6 {[%emt 0:00:03]} 7. Ne2 {[%emt 0:00:00]} O-O {[%emt 0:00:22]} 8. O-O {[%emt 0:00:03] The position is equal.} exd5 {[%emt 0:00:25]} 9. cxd5 {[%emt 0:00:01]} a6 {[%emt 0:00:00]} 10. a4 {[%emt 0:00:02]} Nbd7 {[%emt 0:00:01]} 11. Nec3 {[%emt 0:00:08] [#]} Nh5 $146 {[%emt 0:00:13]} ({Predecessor:} 11... Rb8 12. Na3 Ne8 13. Be3 Ne5 14. Be2 f5 15. Qd2 Nf6 16. exf5 gxf5 17. Nc4 Nxc4 18. Bxc4 {1-0 (33) Vukelic,T (2273)-Jovanic,O (2313) Pula 2000}) 12. g4 {[%emt 0:00:11]} Bd4+ {[%emt 0:00:01]} 13. Kh1 $1 {[%emt 0:00:20]} Ng7 {[%emt 0:00:01]} 14. Ne2 {[%emt 0:02:57]} Ne5 {[%emt 0:00:03]} 15. Nxd4 {[%emt 0:00:59]} cxd4 {[%emt 0:00:02]} 16. Be2 {[%emt 0:02:30]} f5 {[%emt 0:00:03]} 17. exf5 {[%emt 0:01:04]} gxf5 {[%emt 0:00:02][%cal Od4d3] [#] Strongly threatening ...d3!} 18. g5 $1 {[%emt 0:00:01]} f4 {[%emt 0:00:36]} 19. Qxd4 {[%emt 0:00:02]} Qxg5 {[%emt 0:00:51]} (19... Nh5 $1 $14) 20. Rg1 $16 {[%emt 0:00:06]} Qh4 {[%emt 0:02:19]} 21. Nd2 {[%emt 0:01:56]} (21. Nc3 $16) 21... Bf5 $14 {[%emt 0:06:21]} 22. Nc4 {[%emt 0:00:46][%cal Og1g7] Black must now prevent Rxg7+!} Rae8 {[%emt 0:00:05][%cal Oe5g4] Hoping for ...Ng4!} 23. Nxd6 {[%emt 0:02:31]} (23. Bd2 $14 {keeps the upper hand.} Rf6 24. Raf1 (24. Qxf4 $2 Ng4 $19) (24. Bxf4 Nxc4 25. Bxc4 Rg6 $14)) 23... Ng4 $1 $40 {[%emt 0:00:27][%mdl 128] Black mounts an attack.} 24. Rxg4 $4 {[%emt 0:05:02][%mdl 8192] White does not recover from this.} ({Don't go for} 24. fxg4 $2 Rxe2 25. Bxf4 {[#]} Be4+ $1 {[%mdl 512]} 26. Nxe4 Rxf4 27. Nf6+ Rxf6 $19) ({White must play} 24. Qxg7+ $1 $15 Kxg7 25. Nxf5+ Rxf5 26. Rxg4+ Qxg4 27. fxg4 Rxd5 28. Bf3 Re1+ 29. Kg2) 24... Bxg4 $19 {[%emt 0:00:05] Really sharp!} 25. Nxe8 {[%emt 0:00:01]} Rxe8 {[%emt 0:00:53]} 26. Bxf4 $2 {[%emt 0:00:25]} (26. Be3 Rxe3 27. fxg4 Rxe2 28. Qxf4) 26... Rxe2 {[%emt 0:00:20]} 27. Qd3 {[%emt 0:00:13] Weighted Error Value: White=0.46/Black=0.06 (flawless)} 0-1

[Event "MPL-4 Indian Chess Tour 2022"]
[Site "Chess24"]
[Date "2022.09.27"]
[Round "9.4"]
[White "Bharath Subramaniyam H"]
[Black "Pranav, V."]
[Result "1-0"]
[ECO "D00"]
[WhiteElo "2495"]
[BlackElo "2530"]
[Annotator "TA"]
[PlyCount "35"]
[EventDate "2022.09.29"]
[EventType "tourn (rapid)"]
[EventCountry "NET"]
[SourceTitle "playchess.com"]
[Source "ChessBase"]
[SourceQuality "1"]
[WhiteTeam "India"]
[BlackTeam "India"]
[WhiteTeamCountry "IND"]
[BlackTeamCountry "IND"]
[TimeControl "900+10"]

{[%evp 9,35,0,-1,0,0,0,5,9,32,32,39,33,36,35,65,47,58,44,323,327,318,317,312,317,465,439,437,379]} 1. d4 {[%emt 0:00:00]} d5 {[%emt 0:00:00]} 2. Nc3 {[%emt 0:00:02]} Nf6 {[%emt 0:00:17]} 3. Bf4 {[%emt 0:00:04]} g6 {[%emt 0:00:01]} 4. Nb5 {[%emt 0:00:05]} Na6 {[%emt 0:00:01]} 5. e3 {[%emt 0:00:03]} Bg7 {[%emt 0:00:10]} 6. Nf3 {[%emt 0:00:08] D00: 1 d4 d5: Unusual lines.} c6 {[%emt 0:00:22]} 7. Nc3 {[%emt 0:00:04]} Qb6 {[%emt 0:00:01]} 8. Rb1 {[%emt 0:00:29][%cal Ob2b4] The position is equal.} Bf5 {[%emt 0:01:34] [#]} 9. Bd3 $146 {[%emt 0:00:29]} ({Predecessor:} 9. a3 O-O 10. h3 c5 11. Bd3 cxd4 12. exd4 Bxd3 13. Qxd3 Nb8 14. O-O Nbd7 15. Rfe1 {0-1 (52) Kierzek,M (1978)-Chevelevitch,E (2417) Bregenz 2019}) 9... Bxd3 {[%emt 0:00:21]} 10. cxd3 {[%emt 0:00:08]} O-O {[%emt 0:00:09]} 11. b4 {[%emt 0:01:14]} Nb8 {[%emt 0:02:26]} 12. O-O {[%emt 0:01:21] White is more active.} Nh5 {[%emt 0:01:20]} 13. Be5 {[%emt 0:00:08]} f6 $2 {[%emt 0:00:07][%mdl 8192] [#] Loses the game.} (13... Nd7 $14) 14. Bxb8 $18 {[%emt 0:00:11]} Raxb8 {[%emt 0:02:13]} 15. g4 {[%emt 0:00:04]} g5 {[%emt 0:00:51]} 16. gxh5 {[%emt 0:00:29]} g4 {[%emt 0:00:01]} (16... Qd8 $142 17. Ne2 Qd7) 17. Nh4 {[%emt 0:00:38]} f5 {[%emt 0:00:58]} 18. Ne2 {[%emt 0:00:04] Weighted Error Value: White=0.03 (flawless) /Black=0.60} 1-0

[Event "MPL-4 Indian Chess Tour 2022"]
[Site "Chess24"]
[Date "2022.09.27"]
[Round "9.5"]
[White "Aronyak Ghosh"]
[Black "Karthikeyan, Murali"]
[Result "0-1"]
[ECO "E04"]
[WhiteElo "2519"]
[BlackElo "2623"]
[Annotator "TA"]
[PlyCount "122"]
[EventDate "2022.09.29"]
[EventType "tourn (rapid)"]
[EventCountry "NET"]
[SourceTitle "playchess.com"]
[Source "ChessBase"]
[SourceQuality "1"]
[WhiteTeam "India"]
[BlackTeam "India"]
[WhiteTeamCountry "IND"]
[BlackTeamCountry "IND"]
[TimeControl "900+10"]

{[%evp 23,122,28,20,24,15,8,10,5,6,6,11,12,17,5,7,10,11,0,20,10,20,0,0,0,0,-27,-13,-12,-12,-12,-17,-23,-3,-2,-2,-26,-35,-36,-23,-25,-12,-14,-12,-11,-5,-21,-8,-12,-7,-7,-2,-2,0,0,0,0,0,-11,-11,-12,-14,-11,-14,-12,0,0,0,-17,0,0,0,0,0,-211,-214,-381,-380,-372,-372,-358,-356,-569,-364,-445,-445,-833,-568,-576,0,-489,-487,-554,-459,-607,-591,-1567,-1539,-1360,-808,-4956,-4727]} 1. Nf3 {[%emt 0:00:00]} Nf6 {[%emt 0:00:00]} 2. g3 {[%emt 0:00:09]} d5 {[%emt 0:00:09]} 3. Bg2 {[%emt 0:00:02]} c5 {[%emt 0:00:07]} 4. O-O {[%emt 0:00:07]} Nc6 {[%emt 0:00:14]} 5. d4 {[%emt 0:00:05]} e6 {[%emt 0:00:04]} 6. c4 {[%emt 0:00:58]} dxc4 {[%emt 0:00:08]} 7. dxc5 {[%emt 0:00:50]} Qxd1 {[%emt 0:00:02]} 8. Rxd1 {[%emt 0:00:01]} Bxc5 {[%emt 0:00:00]} 9. Nbd2 {[%emt 0:00:03]} c3 {[%emt 0:00:02]} 10. bxc3 {[%emt 0:00:01]} O-O {[%emt 0:00:01]} 11. Nb3 {[%emt 0:00:01]} Be7 {[%emt 0:00:01]} 12. c4 {[%emt 0:00:01]} Bd7 {[%emt 0:00:01]} 13. Bb2 {[%emt 0:00:28] E04: Open Catalan: 5 Nf3.} Rfc8 {[%emt 0:00:02]} 14. Rab1 {[%emt 0:03:02] [#] Hoping for Bxf6.} Be8 {[%emt 0:00:18] [#]} 15. Nfd4 $146 {[%emt 0:00:11] The position is equal.} ({Predecessor:} 15. Ne1 Rab8 16. Nd3 Nd7 17. c5 b6 18. cxb6 axb6 19. Rbc1 Nc5 20. Nbxc5 bxc5 21. Rd2 {½-½ (47) Kjartansson,G (2450)-Rozum,I (2537) Kragero 2022}) 15... a5 {[%emt 0:01:56]} 16. Nb5 {[%emt 0:01:28]} a4 {[%emt 0:01:24]} 17. Nd2 {[%emt 0:00:04]} Na5 {[%emt 0:02:27]} 18. Ba3 {[%emt 0:00:50]} Bxb5 {[%emt 0:01:51]} 19. Bxe7 {[%emt 0:00:04]} Ba6 {[%emt 0:00:32]} 20. a3 {[%emt 0:02:39]} h6 {[%emt 0:01:31]} 21. Rb4 {[%emt 0:02:19][%cal Bb1b4,Bb4a4,Ba4a5,Ba5e5][%mdl 32]} Nd7 {[%emt 0:03:35]} 22. Rxa4 {[%emt 0:01:20]} Nc6 {[%emt 0:00:06]} 23. Bxc6 {[%emt 0:00:03]} Rxc6 {[%emt 0:00:00]} 24. Rb1 {[%emt 0:00:52]} Re8 {[%emt 0:00:24]} 25. Bb4 {[%emt 0:00:04]} Nb6 {[%emt 0:00:07]} 26. Ra5 {[%emt 0:00:01]} Nxc4 {[%emt 0:00:05]} 27. Nxc4 {[%emt 0:00:01]} Bxc4 {[%emt 0:00:28]} 28. Rb2 {[%emt 0:00:25]} Rec8 {[%emt 0:00:20]} 29. Re5 {[%emt 0:00:31]} Bd5 {[%emt 0:00:42] [#] ( -> ...Rc1+)} 30. f3 {[%emt 0:00:08]} Rc1+ {[%emt 0:00:06]} 31. Kg2 {[%emt 0:00:12]} Rd1 {[%emt 0:00:39]} 32. e4 {[%emt 0:00:50]} Bc6 {[%emt 0:00:14]} 33. Rc5 {[%emt 0:00:08]} Rcd8 {[%emt 0:00:06]} 34. Rcc2 {[%emt 0:00:03]} R8d3 {[%emt 0:01:10]} 35. Rd2 {[%emt 0:00:03]} R1xd2+ {[%emt 0:00:01]} 36. Rxd2 $11 {[%emt 0:00:02][%mdl 4096] Endgame KRB-KRB} Rb3 {[%emt 0:00:01]} 37. Rd6 {[%emt 0:00:30]} g5 {[%emt 0:00:19]} 38. g4 {[%emt 0:00:05]} Kg7 {[%emt 0:00:07]} 39. Kf2 {[%emt 0:00:21]} Kg6 {[%emt 0:00:26]} 40. Rd8 {[%emt 0:00:32]} f5 {[%emt 0:00:47]} 41. Rd6 {[%emt 0:00:39]} fxe4 {[%emt 0:00:24]} 42. Rxe6+ {[%emt 0:00:47]} Kf7 {[%emt 0:00:01]} 43. Rxh6 {[%emt 0:00:05]} ({Of course not} 43. Re7+ Kf6 44. Rh7 Rxf3+ 45. Ke1 Kg6 $17) 43... Rb2+ {[%emt 0:00:39]} 44. Ke3 {[%emt 0:00:27]} Rb3+ {[%emt 0:00:21]} (44... exf3 $5 45. Rf6+ $8 Kg8 $11) 45. Kf2 $1 {[%emt 0:00:01]} Rb2+ {[%emt 0:00:18]} 46. Ke3 {[%emt 0:00:01]} exf3 {[%emt 0:00:00] ...Re2+ is the strong threat.} 47. Rf6+ $1 {[%emt 0:00:01]} Ke8 {[%emt 0:00:16]} 48. Bc5 $2 {[%emt 0:00:47]} (48. Re6+ $11 Kf7 49. Re7+ Kg6 50. Re6+ Kf7 51. Re7+ Kg6 52. Re6+ Kf7) 48... Rxh2 $19 {[%emt 0:00:09]} 49. Rf5 $2 {[%emt 0:00:09]} (49. Kd3) 49... Re2+ {[%emt 0:00:03]} 50. Kd4 {[%emt 0:00:02]} Re4+ {[%emt 0:00:02]} 51. Kc3 {[%emt 0:00:06]} Rxg4 {[%emt 0:00:01] And now ...Rg2 would win.} 52. Be3 {[%emt 0:00:05]} (52. Rf8+ {was worth a try.} Kd7 53. Rf6) 52... Be4 {[%emt 0:00:13]} 53. Re5+ {[%emt 0:00:10]} Kf7 {[%emt 0:00:10]} 54. Kd2 {[%emt 0:00:13]} (54. Rb5 $142) 54... Rg2+ {[%emt 0:00:10]} 55. Kc3 {[%emt 0:00:01]} Rg4 {[%emt 0:00:15]} ({Better is} 55... Bc2 $19 56. Rd5 g4) 56. a4 $2 {[%emt 0:00:15][%mdl 8192]} (56. Kd2 $1 $11) 56... Kf6 {[%emt 0:00:10] Black is clearly winning.} 57. Bd4 {[%emt 0:00:03]} Kg6 {[%emt 0:00:05]} 58. a5 {[%emt 0:00:02]} Bf5 {[%emt 0:00:17][%cal Og4d4]} 59. Be3 {[%emt 0:00:09]} Rg2 {[%emt 0:00:11] Threatens to win with ...f2.} 60. Rd5 {[%emt 0:00:14]} Rc2+ {[%emt 0:00:17]} 61. Kb3 {[%emt 0:00:28]} Re2 {[%emt 0:00:01] Weighted Error Value: White=0.59/Black=0.20 (precise)} 0-1

[Event "MPL-4 Indian Chess Tour 2022"]
[Site "Chess24"]
[Date "2022.09.27"]
[Round "9.6"]
[White "Iniyan, P."]
[Black "Adhiban, B.."]
[Result "0-1"]
[ECO "A46"]
[WhiteElo "2556"]
[BlackElo "2603"]
[Annotator "TA"]
[PlyCount "84"]
[EventDate "2022.09.29"]
[EventType "tourn (rapid)"]
[EventCountry "NET"]
[SourceTitle "playchess.com"]
[Source "ChessBase"]
[SourceQuality "1"]
[WhiteTeam "India"]
[BlackTeam "India"]
[WhiteTeamCountry "IND"]
[BlackTeamCountry "IND"]
[TimeControl "900+10"]

{[%evp 9,84,10,50,46,45,52,52,38,64,25,25,18,29,0,0,0,-7,-7,0,0,16,-21,-23,-21,-26,-12,-16,-35,-44,-58,-56,-149,-149,-143,-150,-137,-139,-185,-202,-243,-238,-282,-300,-293,-273,-353,-345,-569,-573,-655,-653,-659,-597,-641,-664,-623,-658,-660,-645,-635,-648,-661,-657,-628,-648,-751,-746,-660,-592,-547,-565,-29974,-29975,-29975,-29976,-29998,-29999]} 1. d4 {[%emt 0:00:00]} d6 {[%emt 0:00:00]} 2. Nf3 {[%emt 0:00:26]} Nf6 {[%emt 0:00:08]} 3. Nc3 {[%emt 0:00:15]} Bf5 {[%emt 0:00:03]} 4. Nh4 {[%emt 0:00:30]} Bd7 {[%emt 0:00:08]} 5. Bg5 {[%emt 0:01:16] [#]} h6 $146 {[%emt 0:02:22]} ({Predecessor:} 5... e6 6. Ne4 d5 7. Nxf6+ gxf6 8. Be3 c5 9. Nf3 cxd4 10. Nxd4 e5 11. Nb3 Be6 12. c3 {0-1 (38) Hildenbrand,P (2255)-Rapport,R (2646) Deizisau 2013}) 6. Bxf6 {[%emt 0:00:03] A46: 1 d4 Nf6 2 Nf3 e6: Torre, London and Colle Systems.} exf6 {[%emt 0:00:00]} 7. e4 {[%emt 0:00:01] Inhibits f5.} g6 {[%emt 0:00:03] Against Qh5} 8. g3 {[%emt 0:01:10] White is slightly better.} Bg7 {[%emt 0:00:03]} 9. Bg2 {[%emt 0:00:06]} O-O {[%emt 0:00:01]} 10. O-O {[%emt 0:00:02]} Nc6 {[%emt 0:00:01]} 11. Qd3 {[%emt 0:01:54]} Ne7 {[%emt 0:02:15]} 12. f4 {[%emt 0:00:25]} f5 {[%emt 0:00:03]} 13. e5 {[%emt 0:00:03]} dxe5 {[%emt 0:01:19]} 14. dxe5 {[%emt 0:01:45]} c6 {[%emt 0:00:03]} 15. Rad1 {[%emt 0:00:50]} Be6 {[%emt 0:00:03]} 16. Qe3 {[%emt 0:02:08]} Qb6 {[%emt 0:00:04]} 17. Qxb6 {[%emt 0:00:08]} axb6 {[%emt 0:00:01]} 18. a3 {[%emt 0:00:29]} Rfd8 {[%emt 0:00:05]} 19. Rfe1 {[%emt 0:00:32]} g5 {[%emt 0:00:41]} 20. fxg5 {[%emt 0:00:21] Black keeps a firm grip on the game.} (20. Nf3 $15) 20... hxg5 $17 {[%emt 0:00:02]} 21. Nf3 {[%emt 0:00:09]} g4 {[%emt 0:00:02]} 22. Nd4 {[%emt 0:01:30] [#]} Ng6 $1 {[%emt 0:01:06]} 23. Nce2 {[%emt 0:00:23]} (23. Rf1 $17) 23... Nxe5 $19 {[%emt 0:02:16]} ({Inferior is} 23... Bxe5 24. c3) 24. b3 {[%emt 0:01:11]} Rxa3 {[%emt 0:00:20]} 25. Nxe6 {[%emt 0:00:01]} Rxd1 {[%emt 0:00:02]} 26. Rxd1 {[%emt 0:00:00]} fxe6 {[%emt 0:00:01]} 27. Rd8+ {[%emt 0:00:00]} Kf7 {[%emt 0:00:08]} 28. Rb8 $2 {[%emt 0:00:02]} (28. Kf2) 28... Bf8 {[%emt 0:00:27]} 29. Rxb7+ {[%emt 0:00:14]} Kf6 {[%emt 0:00:02]} 30. Nf4 {[%emt 0:00:32]} Bc5+ {[%emt 0:02:29]} 31. Kf1 {[%emt 0:00:02]} Nf3 {[%emt 0:00:29] [#] ( -> ...Ra1+)} 32. Nd3 {[%emt 0:01:02]} Ra1+ {[%emt 0:00:34]} 33. Ke2 {[%emt 0:00:03]} Nd4+ {[%emt 0:00:07]} 34. Kf2 {[%emt 0:00:23]} Ra2 {[%emt 0:00:02]} 35. b4 {[%emt 0:00:08]} Rxc2+ {[%emt 0:00:04]} 36. Kf1 {[%emt 0:00:03]} Bf8 {[%emt 0:01:35]} 37. Rxb6 {[%emt 0:00:02]} Bh6 {[%emt 0:00:03] White must now prevent ...Be3.} 38. Nf4 {[%emt 0:00:22]} Bxf4 {[%emt 0:00:20]} 39. gxf4 {[%emt 0:00:00]} Rb2 {[%emt 0:00:29]} 40. h3 {[%emt 0:00:02]} g3 {[%emt 0:00:08][%cal Rb2b1] Black mates.} 41. Bxc6 {[%emt 0:00:07]} Rf2+ {[%emt 0:00:19]} 42. Kg1 {[%emt 0:00:05]} Ne2+ {[%emt 0:00:02] Weighted Error Value: White=0.46/Black=0.04 (flawless)} 0-1